bitfinex/quotes_BTCUSD_20250421
["timestamp","ask_amount","ask_price","bid_price","bid_amount"]
[1745217843883,0.6092,87200.0,87191.0,0.34]
[1745217846584,0.6022,87200.0,87191.0,0.34]
[1745217847440,0.6022,87200.0,87180.0,0.14878225]
[1745217847667,0.6022,87200.0,87190.0,0.14878225]
[1745217854253,0.5952,87200.0,87190.0,0.14878225]
[1745217856217,0.59437945,87200.0,87190.0,0.14878225]
[1745217858168,0.54847945,87200.0,87191.0,0.00229371]
[1745217858384,0.50317945,87200.0,87191.0,0.00229371]
[1745217858592,0.50317945,87200.0,87192.0,0.0473]
[1745217858796,0.50317945,87200.0,87193.0,0.00229351]
[1745217860390,0.50317945,87200.0,87194.0,0.11944791]
[1745217860595,0.50317945,87200.0,87195.0,0.00229343]
[1745217860922,0.49856487,87200.0,87196.0,0.11944791]
[1745217861111,0.49856487,87200.0,87197.0,0.05009334]
[1745217861313,0.49856487,87200.0,87198.0,0.11944791]
[1745217861476,0.49856487,87200.0,87199.0,0.00229332]
[1745217861702,0.49856487,87200.0,87199.0,0.46174123]
[1745217861968,0.49156487,87200.0,87199.0,0.45944791]
[1745217862587,0.49161017,87200.0,87199.0,0.45944791]
[1745217865302,0.49161017,87200.0,87199.0,0.34]
[1745217865810,0.49161017,87200.0,87199.0,0.44367249]
[1745217866355,0.49161017,87200.0,87199.0,0.44337248]
[1745217866691,0.49161017,87200.0,87199.0,0.44212247]
[1745217867316,0.49161017,87200.0,87199.0,0.44162247]
[1745217867793,0.49161017,87200.0,87199.0,0.44099746]
[1745217868047,0.49161017,87200.0,87199.0,0.44062246]
[1745217868756,0.44832018,87200.0,87199.0,0.56007037]
[1745217868961,0.36091491,87200.0,87199.0,0.56007037]
[1745217869429,0.25899216,87200.0,87199.0,0.56007037]
[1745217869581,0.18052965,87200.0,87199.0,0.56007037]
[1745217869991,0.12333714,87200.0,87199.0,0.56007037]
[1745217870819,0.12333714,87200.0,87199.0,0.56107037]
[1745217871033,0.12333714,87200.0,87199.0,0.56007037]
[1745217871204,0.12333714,87200.0,87199.0,0.56107037]
[1745217871406,0.1163957,87200.0,87199.0,0.56107037]
[1745217871786,0.05920319,87200.0,87199.0,0.56107037]
[1745217872145,4e-05,87214.0,87199.0,0.22420791]
[1745217872348,4e-05,87214.0,87204.0,0.14878225]
[1745217872548,4e-05,87214.0,87205.0,0.00229304]
[1745217873086,4e-05,87214.0,87204.0,0.26823016]
[1745217873658,4e-05,87214.0,87205.0,0.1036]
[1745217874043,8.53e-05,87214.0,87205.0,0.1036]
[1745217877222,0.08494271,87224.0,87206.0,0.34]
[1745217877422,0.08539578,87224.0,87211.0,0.34]
[1745217878683,0.0968,87223.0,87205.0,0.1036]
[1745217878883,0.0479,87222.0,87210.0,0.14878225]
[1745217884295,0.0479,87222.0,87211.0,0.34]
[1745217884981,0.0409,87222.0,87211.0,0.34]
[1745217886333,0.0489,87223.0,87211.0,0.34]
[1745217887993,0.0479,87222.0,87211.0,0.34]
[1745217893062,0.0409,87222.0,87211.0,0.34]
[1745217899503,0.0409,87222.0,87211.0,0.14006436]
[1745217899686,0.0409,87222.0,87210.0,0.14878225]
[1745217900853,0.0339,87222.0,87210.0,0.14878225]
[1745217901696,0.0339,87222.0,87211.0,0.34]
[1745217903644,0.0489,87223.0,87211.0,0.34]
[1745217904929,0.00045307,87224.0,87212.0,0.0473932]
[1745217905137,0.00079827,87226.0,87212.0,0.0473932]
[1745217905309,0.00079827,87226.0,87216.0,0.14878225]
[1745217908679,0.04663427,87232.0,87216.0,0.14878225]
[1745217909035,0.04663427,87232.0,87216.0,0.18803667]
[1745217913773,0.04663427,87232.0,87223.0,0.34]
[1745217915197,4e-05,87241.0,87223.0,0.34]
[1745217915198,4e-05,87241.0,87224.0,0.04889281]
[1745217916244,4e-05,87241.0,87226.0,0.34]
[1745217916486,0.0430504,87243.0,87233.0,0.14878225]
[1745217921405,0.0463,87242.0,87230.0,0.14878225]
[1745217923975,0.0393,87242.0,87230.0,0.14878225]
[1745217926991,0.0393,87242.0,87224.0,0.10344]
[1745217927795,0.03919395,87242.0,87224.0,0.10344]
[1745217931909,0.03219395,87242.0,87224.0,0.10344]
[1745217935826,0.11944791,87241.0,87224.0,0.10344]
[1745217936081,0.0466,87240.0,87224.0,0.10344]
[1745217936301,0.11944791,87239.0,87224.0,0.10344]
[1745217939094,0.11930396,87239.0,87224.0,0.10344]
[1745217939398,0.11230396,87239.0,87224.0,0.10344]
[1745217947111,0.10530396,87239.0,87224.0,0.10344]
[1745217954324,0.10530396,87239.0,87220.0,0.14968]
[1745217954820,0.09830396,87239.0,87220.0,0.14968]
[1745217962467,0.09130396,87239.0,87220.0,0.14968]
[1745217966517,0.0466,87240.0,87220.0,0.14968]
[1745217966730,0.0466,87240.0,87221.0,0.00229285]
[1745217966947,4e-05,87246.0,87222.0,0.047]
[1745217967167,4e-05,87246.0,87223.0,0.12174035]
[1745217967350,4e-05,87246.0,87224.0,0.047]
[1745217967564,4e-05,87246.0,87225.0,0.00229244]
[1745217968207,4e-05,87246.0,87226.0,0.047]
[1745217968402,4e-05,87246.0,87227.0,0.00229244]
[1745217969831,4e-05,87246.0,87221.0,0.01981601]
[1745217970233,0.0451746,87249.0,87222.0,0.00229245]
[1745217970408,0.0451746,87249.0,87223.0,0.11944791]
[1745217970615,0.0497446,87261.0,87224.0,0.35683299]
[1745217970837,0.0497446,87261.0,87226.0,0.34]
[1745217971013,0.0497446,87261.0,87228.0,0.34]
[1745217971207,0.00229244,87260.0,87230.0,0.34]
[1745217971411,0.00229244,87260.0,87232.0,0.34]
[1745217971767,0.00229244,87260.0,87234.0,0.34]
[1745217972861,0.00229244,87260.0,87235.0,0.047]
[1745217973235,0.0486,87259.0,87235.0,0.047]
[1745217973628,0.00229244,87258.0,87235.0,0.047]
[1745217977950,0.04389244,87259.0,87235.0,0.047]
[1745217981874,0.04389244,87259.0,87235.0,0.04684122]
[1745217985109,0.04389244,87259.0,87236.0,0.00229209]
[1745217985311,0.0008446,87261.0,87237.0,0.16754791]
[1745217985713,0.0860446,87267.0,87237.0,0.16754791]
[1745217985926,0.11944791,87266.0,87237.0,0.16754791]
[1745217988183,0.11944791,87266.0,87238.0,0.34]
[1745217988402,0.11944791,87266.0,87240.0,0.34]
[1745217989596,0.1195838,87266.0,87240.0,0.34]
[1745217990379,0.1195838,87266.0,87241.0,0.00229196]
[1745217990984,0.1195838,87266.0,87240.0,0.34]
[1745217991206,0.1195838,87266.0,87241.0,0.0481]
[1745217993427,0.1125838,87266.0,87241.0,0.0481]
[1745218001042,0.1055838,87266.0,87241.0,0.0481]
[1745218008860,0.0985838,87266.0,87242.0,0.103]
[1745218016507,0.0915838,87266.0,87242.0,0.103]
[1745218018556,0.0915838,87266.0,87243.0,0.103]
[1745218023181,0.0915838,87266.0,87244.0,0.103]
[1745218024298,0.0845838,87266.0,87244.0,0.103]
[1745218025818,0.0870838,87266.0,87244.0,0.103]
[1745218031925,0.0800838,87266.0,87244.0,0.103]
[1745218037617,0.0800838,87266.0,87245.0,0.10288]
[1745218039331,0.0491,87265.0,87245.0,0.10288]
[1745218039543,0.11944791,87264.0,87240.0,0.10249223]
[1745218039681,0.0491,87263.0,87246.0,0.10288]
[1745218039881,0.11944791,87262.0,87246.0,0.10288]
[1745218045793,0.0497,87261.0,87246.0,0.10288]
[1745218046002,0.16914791,87261.0,87246.0,0.10288]
[1745218047441,0.16214791,87261.0,87246.0,0.10288]
[1745218053844,0.16214791,87261.0,87247.0,0.10288]
[1745218054844,0.16214791,87261.0,87248.0,0.10288]
[1745218055036,0.15514791,87261.0,87248.0,0.10288]
[1745218060483,0.15514791,87261.0,87249.0,0.10276]
[1745218061968,0.0908,87260.0,87249.0,0.10276]
[1745218062714,0.0838,87260.0,87249.0,0.10276]
[1745218066309,0.0838,87260.0,87234.0,0.10151161]
[1745218066310,0.0929,87259.0,87234.0,0.10151161]
[1745218066526,0.0476,87257.0,87244.0,0.10276]
[1745218066738,0.11944791,87256.0,87244.0,0.10276]
[1745218070985,0.11244791,87256.0,87244.0,0.10276]
[1745218071188,0.11244791,87256.0,87245.0,0.10276]
[1745218071329,0.0472,87255.0,87245.0,0.10276]
[1745218071563,0.16664791,87254.0,87245.0,0.10276]
[1745218072055,0.0472,87253.0,87245.0,0.10276]
[1745218072268,0.16664791,87253.0,87245.0,0.10276]
[1745218078763,0.15964791,87253.0,87245.0,0.10276]
[1745218081337,0.0402,87253.0,87245.0,0.10276]
[1745218083131,0.0402,87253.0,87246.0,0.00229214]
[1745218085809,0.0402,87253.0,87247.0,0.10276]
[1745218086493,0.0332,87253.0,87248.0,0.34]
[1745218087925,0.0453,87258.0,87249.0,0.00229208]
[1745218088766,0.0453,87258.0,87248.0,0.34]
[1745218088976,0.00263589,87266.0,87249.0,0.00229202]
[1745218089388,0.00263589,87266.0,87250.0,0.34]
[1745218089599,0.00263589,87266.0,87251.0,0.00229167]
[1745218091036,0.00263589,87266.0,87252.0,0.53124791]
[1745218091275,0.00263589,87266.0,87253.0,0.04839154]
[1745218091478,0.00263589,87266.0,87254.0,0.11944791]
[1745218091684,0.00263589,87266.0,87255.0,0.00229154]
[1745218091887,0.00263589,87266.0,87255.0,0.12173945]
[1745218092305,0.00263589,87266.0,87256.0,0.11944791]
[1745218092511,0.00263589,87266.0,87257.0,0.00229146]
[1745218092724,0.00263589,87266.0,87257.0,0.12173937]
[1745218093536,0.00263589,87266.0,87258.0,0.11944791]
[1745218093748,0.00263589,87266.0,87259.0,0.0022914]
[1745218093949,0.00263589,87266.0,87260.0,0.11944791]
[1745218094169,0.04536969,87279.0,87260.0,0.11944791]
[1745218094368,0.04543712,87279.0,87261.0,0.00229139]
[1745218094697,0.04543712,87279.0,87262.0,0.11944791]
[1745218097806,0.04543712,87279.0,87263.0,0.1026]
[1745218101940,0.03843712,87279.0,87263.0,0.1026]
[1745218102591,0.048,87278.0,87263.0,0.1026]
[1745218106367,0.048,87278.0,87264.0,0.1026]
[1745218107920,0.04650719,87278.0,87264.0,0.1026]
[1745218109572,0.03950719,87278.0,87264.0,0.1026]
[1745218111941,0.03950719,87278.0,87265.0,0.00229141]
[1745218112653,0.03950719,87278.0,87266.0,0.1026]
[1745218113835,0.03950719,87278.0,87260.0,0.47521113]
[1745218114081,0.03950719,87278.0,87267.0,0.1026]
[1745218115600,6.743e-05,87279.0,87268.0,0.00114452]
[1745218117345,0.04151203,87283.0,87268.0,0.00114452]
[1745218117587,0.04151203,87283.0,87268.0,0.00121195]
[1745218118364,0.04151203,87283.0,87269.0,0.13398876]
[1745218120923,0.04151203,87283.0,87270.0,0.4118]
[1745218121072,0.04151203,87283.0,87271.0,0.11944791]
[1745218123857,0.00266962,87283.0,87272.0,0.34]
[1745218124225,0.0472,87287.0,87272.0,0.34]
[1745218125195,0.0412,87287.0,87272.0,0.34]
[1745218126781,0.0476,87286.0,87272.0,0.34]
[1745218132096,0.0476,87286.0,87273.0,0.00114415]
[1745218132828,0.0476,87286.0,87272.0,0.34]
[1745218132989,0.0406,87286.0,87272.0,0.34]
[1745218139213,0.0406,87286.0,87273.0,0.0011441]
[1745218139340,0.0412,87287.0,87273.0,0.0011441]
[1745218140734,0.0362,87287.0,87273.0,0.0011441]
[1745218143041,0.0455,87286.0,87272.0,0.34]
[1745218143247,0.0455,87286.0,87272.0,0.11944791]
[1745218143766,0.0455,87286.0,87273.0,0.10244]
[1745218144397,0.0455,87286.0,87273.0,0.51424]
[1745218147868,0.0455,87286.0,87274.0,0.34]
[1745218148566,0.0385,87286.0,87276.0,0.34]
[1745218151583,0.0251529,87286.0,87276.0,0.34]
[1745218151807,0.01879009,87286.0,87276.0,0.34]
[1745218152129,0.01211645,87286.0,87276.0,0.34]
[1745218152536,0.00544281,87286.0,87276.0,0.34]
[1745218153477,0.00544281,87286.0,87277.0,0.10232]
[1745218156461,0.00144281,87286.0,87277.0,0.10232]
[1745218157263,0.03036815,87287.0,87277.0,0.10232]
[1745218158012,4e-05,87286.0,87277.0,0.10232]
[1745218158960,8e-05,87286.0,87277.0,0.10232]
[1745218159348,0.00012,87286.0,87277.0,0.10232]
[1745218162533,0.03036815,87287.0,87277.0,0.10232]
[1745218162743,0.03036815,87287.0,87278.0,0.0011441]
[1745218163100,0.03036815,87287.0,87279.0,0.10232]
[1745218163964,0.02336815,87287.0,87279.0,0.10232]
[1745218166890,0.02336815,87287.0,87280.0,0.34]
[1745218167183,0.01617815,87287.0,87280.0,0.34]
[1745218167794,0.01617815,87287.0,87282.0,0.34]
[1745218171305,0.01617815,87287.0,87283.0,0.00114406]
[1745218171503,0.01617815,87287.0,87283.0,0.02216858]
[1745218171705,0.01117815,87287.0,87283.0,0.02216858]
[1745218171907,0.0481,87291.0,87283.0,0.02216858]
[1745218172315,0.0008446,87293.0,87283.0,0.02216858]
[1745218172632,0.0008446,87293.0,87284.0,0.10232]
[1745218174874,0.0452,87292.0,87284.0,0.10232]
[1745218175071,0.0452,87292.0,87285.0,0.00114402]
[1745218175287,0.0204,87292.0,87285.0,0.00114402]
[1745218175501,0.0204,87292.0,87284.0,0.10232]
[1745218177588,0.0008448,87296.0,87285.0,0.00114399]
[1745218177707,0.0008448,87296.0,87284.0,0.10232]
[1745218179396,0.0449896,87305.0,87284.0,0.10232]
[1745218180103,0.00286361,87304.0,87284.0,0.10232]
[1745218187041,0.08605321,87305.0,87284.0,0.10232]
[1745218187236,0.08605321,87305.0,87285.0,0.0458]
[1745218187448,0.00172009,87304.0,87285.0,0.0458]
[1745218190768,0.00172009,87304.0,87285.0,0.14791708]
[1745218192663,0.00172009,87304.0,87286.0,0.1022]
[1745218194732,0.0492,87310.0,87287.0,0.0022909]
[1745218194911,0.0008446,87314.0,87287.0,0.0022909]
[1745218195107,0.11944791,87313.0,87287.0,0.0022909]
[1745218195306,0.00172009,87312.0,87286.0,0.1022]
[1745218195521,0.11944791,87311.0,87286.0,0.1022]
[1745218195748,0.00172009,87310.0,87287.0,0.0963]
[1745218199367,0.11944791,87311.0,87288.0,0.00229078]
[1745218199602,0.00172009,87310.0,87288.0,0.00229078]
[1745218200155,0.00172009,87310.0,87287.0,0.0963]
[1745218207831,0.00172009,87310.0,87286.0,0.1022]
[1745218207832,0.00172009,87310.0,87288.0,0.10216]
[1745218210364,0.0453,87308.0,87288.0,0.10216]
[1745218210570,0.0453,87306.0,87289.0,0.34]
[1745218210781,0.121168,87305.0,87289.0,0.34]
[1745218215824,0.114168,87305.0,87289.0,0.34]
[1745218216615,0.0455,87303.0,87289.0,0.34]
[1745218216927,0.0455,87303.0,87283.0,0.02103147]
[1745218216928,0.11944791,87302.0,87283.0,0.02103147]
[1745218217138,0.11944791,87302.0,87284.0,0.10204]
[1745218218185,0.11944791,87302.0,87285.0,0.34]
[1745218219593,0.0453,87301.0,87285.0,0.34]
[1745218219794,0.11944791,87300.0,87285.0,0.34]
[1745218220405,0.0453,87299.0,87285.0,0.34]
[1745218222282,0.0465,87296.0,87286.0,0.10204]
[1745218222451,0.0465,87294.0,87283.0,0.02058484]
[1745218222664,0.0465,87294.0,87287.0,0.10204]
[1745218223541,0.0395,87294.0,87287.0,0.10204]
[1745218226097,0.0395,87294.0,87288.0,0.34]
[1745218226320,0.11944791,87293.0,87288.0,0.34]
[1745218231323,0.11244791,87293.0,87288.0,0.34]
[1745218236487,0.11244791,87293.0,87283.0,0.02078359]
[1745218236696,0.11344791,87293.0,87283.0,0.02078359]
[1745218236905,0.11344791,87293.0,87272.0,0.10208]
[1745218236906,0.0468,87288.0,87272.0,0.10208]
[1745218237108,0.0468,87286.0,87272.0,0.10208]
[1745218237360,0.11944791,87285.0,87272.0,0.10208]
[1745218237588,0.11944791,87285.0,87272.0,0.12831892]
[1745218239162,0.11244791,87285.0,87272.0,0.12831892]
[1745218239586,0.0465,87284.0,87259.0,0.10208]
[1745218239813,0.11944791,87283.0,87259.0,0.10208]
[1745218239998,0.0465,87282.0,87260.0,0.34]
[1745218240224,9.331e-05,87285.0,87260.0,0.34]
[1745218240225,0.0465,87279.0,87260.0,0.34]
[1745218240579,0.0465,87277.0,87260.0,0.34]
[1745218240738,0.11944791,87276.0,87260.0,0.34]
[1745218242976,0.0465,87277.0,87261.0,0.0022918]
[1745218243633,0.0465,87277.0,87260.0,0.34]
[1745218244141,0.0465,87277.0,87261.0,0.00229165]
[1745218244316,0.0493,87284.0,87261.0,0.00229165]
[1745218244481,0.11944791,87283.0,87261.0,0.00229165]
[1745218246720,0.11244791,87283.0,87261.0,0.00229165]
[1745218247854,0.11244791,87283.0,87261.0,0.00229165]
[1745218248483,0.11244791,87283.0,87260.0,0.34]
[1745218254367,0.10544791,87283.0,87260.0,0.34]
[1745218262191,0.09844791,87283.0,87260.0,0.34]
[1745218263391,0.09844791,87283.0,87261.0,0.049]
[1745218264221,0.0493,87284.0,87263.0,0.0498]
[1745218264432,0.001,87293.0,87266.0,0.049]
[1745218264634,0.001,87293.0,87270.0,0.09185741]
[1745218264826,0.0451,87309.0,87275.0,0.06434085]
[1745218264962,0.11944791,87308.0,87277.0,0.0498]
[1745218265163,0.11944791,87308.0,87279.0,0.0491]
[1745218265366,0.11944791,87308.0,87280.0,0.12173884]
[1745218265571,0.11944791,87308.0,87281.0,0.0491]
[1745218265811,0.11944791,87308.0,87282.0,0.00229093]
[1745218266014,4.525e-05,87309.0,87283.0,0.11944791]
[1745218266332,4.525e-05,87309.0,87285.0,0.0477]
[1745218266681,0.11944791,87308.0,87285.0,0.0477]
[1745218266879,0.11944791,87308.0,87285.0,0.00871642]
[1745218267085,0.11944791,87308.0,87281.0,0.0491]
[1745218267289,0.0495,87307.0,87286.0,0.10196]
[1745218267511,0.11944791,87306.0,87286.0,0.10196]
[1745218269354,0.11944791,87306.0,87287.0,0.34]
[1745218269791,0.11244791,87306.0,87287.0,0.34]
[1745218271967,4.525e-05,87309.0,87287.0,0.34]
[1745218271968,4.525e-05,87309.0,87288.0,0.00229107]
[1745218272167,4.525e-05,87309.0,87289.0,0.0477]
[1745218272512,4.525e-05,87309.0,87290.0,0.10409088]
[1745218273053,4.525e-05,87309.0,87290.0,0.1018]
[1745218273295,4.525e-05,87309.0,87292.0,0.0491]
[1745218273472,4.525e-05,87309.0,87293.0,0.12173861]
[1745218273678,4.525e-05,87309.0,87294.0,0.0491]
[1745218273905,4.525e-05,87309.0,87295.0,0.00229062]
[1745218276319,4.525e-05,87309.0,87296.0,0.11944791]
[1745218276516,4.525e-05,87309.0,87297.0,0.00229052]
[1745218276876,4.525e-05,87309.0,87298.0,0.0491]
[1745218277077,4.525e-05,87309.0,87299.0,0.00229052]
[1745218277351,4.525e-05,87309.0,87300.0,0.11944791]
[1745218277564,4.525e-05,87309.0,87301.0,0.04999041]
[1745218277858,4.525e-05,87309.0,87301.0,0.16943832]
[1745218278217,4.525e-05,87309.0,87302.0,0.11944791]
[1745218278425,4.525e-05,87309.0,87303.0,0.05139037]
[1745218278632,4.525e-05,87309.0,87303.0,0.17083828]
[1745218280123,0.0008446,87318.0,87303.0,0.17083828]
[1745218280325,0.00129719,87318.0,87303.0,0.17083828]
[1745218280524,0.00129719,87318.0,87304.0,0.45054626]
[1745218280735,0.00129719,87318.0,87305.0,0.00229027]
[1745218280935,0.00129719,87318.0,87306.0,0.11944791]
[1745218281169,0.00129719,87318.0,87307.0,0.00229027]
[1745218282450,0.000845,87327.0,87307.0,0.00229027]
[1745218282652,0.04733179,87336.0,87308.0,0.11944791]
[1745218282860,0.04733179,87336.0,87309.0,0.1018]
[1745218283100,0.04733179,87336.0,87310.0,0.11944791]
[1745218284610,0.0459,87342.0,87311.0,0.0469]
[1745218284900,0.12029291,87339.0,87312.0,0.11944791]
[1745218286286,0.12029291,87339.0,87313.0,0.0471]
[1745218287301,0.11944791,87338.0,87311.0,0.024646]
[1745218288598,0.11944791,87338.0,87312.0,0.10176]
[1745218290231,0.11244791,87338.0,87312.0,0.10176]
[1745218290836,0.11244791,87338.0,87312.0,0.10276]
[1745218297910,0.10544791,87338.0,87312.0,0.10276]
[1745218303934,0.0462,87337.0,87312.0,0.10276]
[1745218304140,0.11944791,87336.0,87312.0,0.10276]
[1745218305753,0.11244791,87336.0,87312.0,0.10276]
[1745218308332,0.11244791,87336.0,87313.0,0.00229029]
[1745218309243,0.11244791,87336.0,87312.0,0.10276]
[1745218313357,0.10544791,87336.0,87312.0,0.10276]
[1745218321202,0.10544791,87336.0,87312.0,0.10376]
[1745218321411,0.09844791,87336.0,87312.0,0.10376]
[1745218322200,0.0451,87334.0,87312.0,0.10376]
[1745218322399,0.11944791,87333.0,87312.0,0.10376]
[1745218323129,0.0452,87332.0,87312.0,0.10376]
[1745218323335,0.11944791,87331.0,87312.0,0.10376]
[1745218324467,0.11944791,87331.0,87313.0,0.34]
[1745218325975,0.11944791,87331.0,87312.0,0.002]
[1745218326177,0.0929,87330.0,87312.0,0.002]
[1745218326373,0.11944791,87329.0,87312.0,0.002]
[1745218327704,0.12044791,87329.0,87309.0,0.10164]
[1745218329058,0.11344791,87329.0,87309.0,0.10164]
[1745218332471,0.11344791,87329.0,87310.0,0.34]
[1745218332702,0.0475,87328.0,87310.0,0.34]
[1745218332950,0.11944791,87327.0,87310.0,0.34]
[1745218334019,0.11944791,87327.0,87307.0,0.00045259]
[1745218334220,0.11944791,87320.0,87307.0,0.00045259]
[1745218334575,0.0454,87318.0,87307.0,0.00045259]
[1745218334725,0.16694791,87317.0,87307.0,0.00045259]
[1745218334927,0.0475,87316.0,87307.0,0.00045259]
[1745218335122,0.11944791,87314.0,87307.0,0.00045259]
[1745218335325,0.0475,87313.0,87307.0,0.00045259]
[1745218335523,0.11944791,87312.0,87307.0,0.00045259]
[1745218335736,0.0475,87310.0,87307.0,0.00045259]
[1745218336102,0.11944791,87309.0,87307.0,0.00045259]
[1745218336979,0.11244791,87309.0,87307.0,0.00045259]
[1745218344556,0.11244791,87309.0,87289.0,0.10152]
[1745218344857,0.10544791,87309.0,87289.0,0.10156525]
[1745218346774,0.10544791,87309.0,87289.0,4.525e-05]
[1745218347795,0.10544791,87309.0,87283.0,0.10156]
[1745218347953,0.10544791,87309.0,87283.0,0.10160525]
[1745218348910,0.10544791,87309.0,87284.0,0.14065741]
[1745218349079,0.001,87327.0,87293.0,0.09185741]
[1745218349080,0.0458,87318.0,87293.0,0.09185741]
[1745218349261,0.0471,87323.0,87293.0,0.09185741]
[1745218349262,0.11944791,87317.0,87294.0,0.00229072]
[1745218349667,0.11944791,87317.0,87293.0,0.09185741]
[1745218350064,0.11944791,87317.0,87294.0,0.10156]
[1745218351002,0.11944791,87317.0,87295.0,0.0484]
[1745218351206,0.12044791,87317.0,87295.0,0.0484]
[1745218351402,0.12044791,87317.0,87296.0,0.00229075]
[1745218351635,0.12044791,87317.0,87295.0,0.0484]
[1745218351852,0.001,87317.0,87295.0,0.0484]
[1745218352457,0.0411,87323.0,87295.0,0.3884]
[1745218352776,0.11944791,87322.0,87295.0,0.3884]
[1745218355031,0.11944791,87322.0,87296.0,0.00229064]
[1745218355234,0.0458,87325.0,87302.0,0.09185741]
[1745218355519,0.000845,87344.0,87302.0,0.09185741]
[1745218355520,0.0474,87338.0,87303.0,0.5115383]
[1745218355759,0.11944791,87337.0,87303.0,0.84034626]
[1745218358454,0.11944791,87337.0,87303.0,0.84883268]
[1745218360133,0.11244791,87337.0,87303.0,0.84883268]
[1745218361764,0.11244791,87337.0,87304.0,0.00229032]
[1745218361920,0.11244791,87337.0,87304.0,0.12173823]
[1745218362275,0.11244791,87337.0,87304.0,0.11944791]
[1745218362672,0.11244791,87337.0,87306.0,0.0498]
[1745218362831,0.11244791,87337.0,87307.0,0.00229032]
[1745218363216,0.11244791,87337.0,87310.0,0.0498]
[1745218363448,0.11244791,87337.0,87311.0,0.00229016]
[1745218364622,0.11290053,87337.0,87311.0,0.00229016]
[1745218364836,0.00045262,87337.0,87311.0,0.00229016]
[1745218365178,0.00045262,87337.0,87312.0,0.45054626]
[1745218365394,0.00045262,87337.0,87314.0,0.0492]
[1745218365744,0.00045262,87337.0,87315.0,0.00229008]
[1745218367614,0.00045262,87337.0,87315.0,0.02961585]
[1745218367953,0.04523242,87344.0,87315.0,0.02961585]
[1745218368096,0.11944791,87343.0,87315.0,0.02961585]
[1745218372599,0.04536815,87344.0,87316.0,0.11944791]
[1745218372753,0.11958364,87344.0,87317.0,0.43568998]
[1745218372955,0.11958364,87344.0,87317.0,0.55284791]
[1745218374243,0.11958364,87344.0,87318.0,0.00228998]
[1745218375103,0.00013573,87344.0,87318.0,0.11944791]
[1745218375688,0.08899333,87352.0,87319.0,0.0461]
[1745218375999,0.11944791,87351.0,87319.0,0.04655262]
[1745218377435,0.11944791,87351.0,87320.0,0.16674791]
[1745218377634,0.11944791,87351.0,87321.0,0.0461]
[1745218377835,0.11944791,87351.0,87322.0,0.11944791]
[1745218378015,0.11944791,87351.0,87323.0,0.0461]
[1745218378192,0.11944791,87351.0,87324.0,0.0473]
[1745218380311,0.11944791,87351.0,87322.0,0.00652006]
[1745218380545,0.11934746,87351.0,87319.0,0.00045262]
[1745218381113,0.0467,87350.0,87319.0,0.00045262]
[1745218381337,0.11944791,87349.0,87319.0,0.00045262]
[1745218383328,0.11944791,87349.0,87320.0,0.0424]
[1745218383530,0.11244791,87349.0,87320.0,0.0424]
[1745218385249,0.0974,87348.0,87320.0,0.0424]
[1745218385402,0.049,87346.0,87319.0,0.00045262]
[1745218385606,0.049,87344.0,87320.0,0.1014]
[1745218385812,0.16844791,87343.0,87320.0,0.1014]
[1745218389074,0.049,87342.0,87320.0,0.1014]
[1745218389314,0.11944791,87341.0,87320.0,0.1014]
[1745218390984,0.049,87340.0,87320.0,0.1014]
[1745218391117,0.11244791,87339.0,87320.0,0.1014]
[1745218392676,0.049,87337.0,87320.0,0.1014]
[1745218392854,0.11944791,87336.0,87320.0,0.1014]
[1745218395771,0.049,87335.0,87319.0,0.00045262]
[1745218396045,0.049,87333.0,87321.0,0.10128]
[1745218396262,0.049,87331.0,87321.0,0.10128]
[1745218396494,0.11944791,87330.0,87321.0,0.10128]
[1745218396716,0.049,87329.0,87321.0,0.10128]
[1745218396930,0.11944791,87328.0,87321.0,0.10128]
[1745218398916,0.11244791,87328.0,87321.0,0.10128]
[1745218399116,0.049,87327.0,87321.0,0.10128]
[1745218399350,0.16844791,87327.0,87321.0,0.10128]
[1745218399631,0.11944791,87326.0,87321.0,0.10128]
[1745218401837,0.0452,87325.0,87321.0,0.10128]
[1745218401976,0.0452,87323.0,87321.0,0.10128]
[1745218402182,0.0475,87325.0,87319.0,0.00045262]
[1745218402183,0.16464791,87322.0,87319.0,0.00045262]
[1745218406310,0.0452,87322.0,87319.0,0.00045262]
[1745218406630,0.0382,87322.0,87319.0,0.00045262]
[1745218407430,0.0475,87334.0,87319.0,0.00245262]
[1745218407608,0.0475,87334.0,87320.0,0.00229022]
[1745218407818,0.0475,87334.0,87319.0,0.00245262]
[1745218409750,0.0452,87333.0,87319.0,0.00245262]
[1745218411063,0.0452,87333.0,87319.0,0.00145262]
[1745218411829,0.0452,87333.0,87320.0,0.10132]
[1745218414437,0.0382,87333.0,87320.0,0.10132]
[1745218419759,0.0475,87334.0,87320.0,0.10132]
[1745218420753,0.0475,87334.0,87321.0,0.10132]
[1745218420956,0.04795225,87334.0,87321.0,0.10132]
[1745218421694,0.0479321,87334.0,87322.0,0.10132]
[1745218422072,0.0409321,87334.0,87322.0,0.10132]
[1745218422895,0.0409321,87334.0,87323.0,0.00229011]
[1745218423666,0.00045225,87334.0,87323.0,0.00229011]
[1745218424201,0.00045225,87334.0,87322.0,0.10132]
[1745218425267,0.00045225,87334.0,87311.0,0.01454085]
[1745218425474,0.0485,87333.0,87311.0,0.01454085]
[1745218425775,0.0485,87333.0,87312.0,0.1012]
[1745218426629,0.0455,87332.0,87312.0,0.1012]
[1745218426825,0.0485,87331.0,87312.0,0.1012]
[1745218429991,0.0463,87329.0,87312.0,0.1012]
[1745218430198,0.0463,87327.0,87312.0,0.1012]
[1745218430400,0.0463,87326.0,87312.0,0.1012]
[1745218431127,0.0393,87326.0,87312.0,0.1012]
[1745218434103,0.0393,87326.0,87295.0,0.16603903]
[1745218434104,0.0393,87326.0,87314.0,0.34]
[1745218434278,0.0393,87326.0,87316.0,0.34]
[1745218438805,0.11944791,87327.0,87316.0,0.34]
[1745218441675,0.046,87326.0,87316.0,0.34]
[1745218446464,0.039,87326.0,87316.0,0.34]
[1745218447848,0.0479,87328.0,87316.0,0.34]
[1745218448208,0.0479,87328.0,87317.0,0.00229017]
[1745218449482,0.03485,87328.0,87317.0,0.00229017]
[1745218449697,0.00045225,87334.0,87317.0,0.00229017]
[1745218450565,0.00045225,87334.0,87316.0,0.34]